bitfinex-derivatives/quotes_ETHF0:USTF0_20260112
["timestamp","ask_amount","ask_price","bid_price","bid_amount"]
[1768198634943,0.96100238,3163.9,3162.6,0.1868545]
[1768198634944,0.91647669,3163.7,3162.6,0.1868545]
[1768198635146,1.241,3164.2,3162.6,0.1868545]
[1768198635453,0.91616617,3164.1,3162.6,0.1868545]
[1768198635651,0.91616617,3164.0,3162.6,0.1868545]
[1768198635847,0.91616617,3163.9,3162.6,0.1868545]
[1768198636047,0.91616617,3163.8,3162.6,0.1868545]
[1768198636250,0.91616617,3163.7,3162.6,0.1868545]
[1768198636452,1.241,3164.3,3162.6,0.1868545]
[1768198636748,0.91594043,3164.2,3162.6,0.1868545]
[1768198636954,0.91594043,3164.1,3162.6,0.1868545]
[1768198637150,0.91594043,3164.0,3162.6,0.1868545]
[1768198637457,0.91594043,3163.9,3162.6,0.1868545]
[1768198637649,0.91594043,3163.8,3162.6,0.1868545]
[1768198637848,1.241,3164.3,3162.6,0.1868545]
[1768198638056,0.9157441,3164.2,3162.6,0.1868545]
[1768198638250,0.9157441,3164.1,3162.6,0.1868545]
[1768198638453,1.87674648,3164.0,3162.6,0.1868545]
[1768198638750,0.9157441,3163.9,3162.6,0.1868545]
[1768198638950,0.9157441,3163.8,3162.6,0.1868545]
[1768198639254,0.96100238,3164.0,3162.6,0.1868545]
[1768198639446,0.91548611,3163.9,3162.6,0.1868545]
[1768198639643,0.96100238,3164.0,3162.6,0.1868545]
[1768198639958,0.91548992,3163.9,3162.6,0.1868545]
[1768198640256,0.96100238,3164.0,3162.6,0.1868545]
[1768198640452,0.91538585,3163.9,3162.6,0.1868545]
[1768198640646,0.96100238,3164.0,3162.6,0.1868545]
[1768198640849,0.91538799,3163.9,3162.6,0.1868545]
[1768198641142,0.96100238,3164.0,3162.6,0.1868545]
[1768198641344,0.91529933,3163.9,3162.6,0.1868545]
[1768198641553,0.96100238,3164.0,3162.6,0.1868545]
[1768198641852,0.91529833,3163.9,3162.6,0.1868545]
[1768198642053,0.91529833,3163.8,3162.6,0.1868545]
[1768198642254,0.96100238,3164.0,3162.6,0.1868545]
[1768198642559,0.91522695,3163.9,3162.6,0.1868545]
[1768198642854,0.91522695,3163.8,3162.6,0.1868545]
[1768198643056,0.96100238,3164.0,3162.6,0.1868545]
[1768198643243,0.91519158,3163.9,3162.6,0.1868545]
[1768198643449,0.91519158,3163.8,3162.6,0.1868545]
[1768198643649,0.96100238,3164.0,3162.6,0.1868545]
[1768198643848,0.9151796,3163.9,3162.6,0.1868545]
[1768198644054,0.9151796,3163.8,3162.6,0.1868545]
[1768198644257,0.96100238,3164.0,3162.6,0.1868545]
[1768198644558,0.91514529,3163.9,3162.6,0.1868545]
[1768198644747,0.91514529,3163.8,3162.6,0.1868545]
[1768198644949,0.96100238,3164.0,3162.6,0.1868545]
[1768198645148,0.91514481,3163.9,3162.6,0.1868545]
[1768198645358,0.91514481,3163.8,3162.6,0.1868545]
[1768198645558,0.96100238,3164.0,3162.6,0.1868545]
[1768198645753,0.91514194,3163.9,3162.6,0.1868545]
[1768198645956,0.91514194,3163.8,3162.6,0.1868545]
[1768198646154,0.96100238,3164.0,3162.6,0.1868545]
[1768198646354,0.91522414,3163.9,3162.6,0.1868545]
[1768198646652,0.91522414,3163.8,3162.6,0.1868545]
[1768198646856,0.96100238,3164.0,3162.6,0.1868545]
[1768198647056,0.91522251,3163.9,3162.6,0.1868545]
[1768198647247,0.91522251,3163.8,3162.6,0.1868545]
[1768198647451,0.96100238,3164.0,3162.6,0.1868545]
[1768198647659,0.9152347,3163.9,3162.6,0.1868545]
[1768198647851,0.9152347,3163.8,3162.6,0.1868545]
[1768198648052,0.96100238,3164.0,3162.6,0.1868545]
[1768198648251,0.91524666,3163.9,3162.6,0.1868545]
[1768198648452,0.91524666,3163.8,3162.6,0.1868545]
[1768198648664,0.96100238,3164.0,3162.6,0.1868545]
[1768198648958,0.91526411,3163.9,3162.6,0.1868545]
[1768198649160,0.91526411,3163.8,3162.6,0.1868545]
[1768198649362,0.96100238,3164.0,3162.6,0.1868545]
[1768198649563,0.91531231,3163.9,3162.6,0.1868545]
[1768198649763,0.91531231,3163.8,3162.6,0.1868545]
[1768198649956,0.96100238,3164.0,3162.6,0.1868545]
[1768198650158,0.91530974,3163.9,3162.6,0.1868545]
[1768198650457,0.91530974,3163.8,3162.6,0.1868545]
[1768198650662,0.96100238,3164.0,3162.6,0.1868545]
[1768198650862,0.91512146,3163.9,3162.6,0.1868545]
[1768198651162,0.91512146,3163.8,3162.6,0.1868545]
[1768198651361,0.96100238,3164.0,3162.6,0.1868545]
[1768198651662,0.91477439,3163.9,3162.6,0.1868545]
[1768198651866,0.91477439,3163.8,3162.6,0.1868545]
[1768198652067,0.96100238,3164.0,3162.6,0.1868545]
[1768198652261,0.91487509,3163.9,3162.6,0.1868545]
[1768198652560,0.91487509,3163.8,3162.6,0.1868545]
[1768198652763,0.96100238,3164.0,3162.6,0.1868545]
[1768198653067,0.91504335,3163.9,3162.6,0.1868545]
[1768198653265,0.91504335,3163.8,3162.6,0.1868545]
[1768198653459,0.96100238,3164.0,3162.6,0.1868545]
[1768198653660,0.91515059,3163.9,3162.6,0.1868545]
[1768198653861,0.91515059,3163.8,3162.6,0.1868545]
[1768198654061,0.91515059,3163.7,3162.6,0.1868545]
[1768198654365,0.96100238,3164.0,3162.6,0.1868545]
[1768198654569,0.91528627,3163.9,3162.6,0.1868545]
[1768198654772,0.91528627,3163.8,3162.6,0.1868545]
[1768198654971,0.91528627,3163.7,3162.6,0.1868545]
[1768198655173,0.96100238,3164.0,3162.6,0.1868545]
[1768198655373,0.91545195,3163.9,3162.6,0.1868545]
[1768198655563,0.91545195,3163.8,3162.6,0.1868545]
[1768198655759,0.91545195,3163.7,3162.6,0.1868545]
[1768198655965,0.96100238,3164.0,3162.6,0.1868545]
[1768198656164,0.91545066,3163.9,3162.6,0.1868545]
[1768198656370,0.91545066,3163.8,3162.6,0.1868545]
[1768198656564,0.91545066,3163.7,3162.6,0.1868545]
[1768198656868,0.96100238,3164.0,3162.6,0.1868545]
[1768198657075,0.91564253,3163.9,3162.6,0.1868545]
[1768198657275,0.91564253,3163.8,3162.6,0.1868545]
[1768198657475,0.91564253,3163.7,3162.6,0.1868545]
[1768198657678,0.96100238,3164.0,3162.6,0.1868545]
[1768198657980,0.915871,3163.9,3162.6,0.1868545]
[1768198658174,0.915871,3163.8,3162.6,0.1868545]
[1768198658475,0.915871,3163.7,3162.6,0.1868545]
[1768198658676,0.915871,3163.6,3162.6,0.1868545]
[1768198658871,0.96100238,3164.0,3162.6,0.1868545]
[1768198659072,0.91615186,3163.9,3162.6,0.1868545]
[1768198659275,0.91615186,3163.8,3162.6,0.1868545]
[1768198659580,0.91615186,3163.7,3162.6,0.1868545]
[1768198659775,0.91615186,3163.6,3162.6,0.1868545]
[1768198659974,0.96100238,3164.0,3162.6,0.1868545]
[1768198660172,0.91650798,3163.9,3162.6,0.1868545]
[1768198660373,0.91650798,3163.8,3162.6,0.1868545]
[1768198660574,0.91650798,3163.7,3162.6,0.1868545]
[1768198660866,0.91650798,3163.6,3162.6,0.1868545]
[1768198661069,0.91808991,3163.5,3162.6,0.1868545]
[1768198661270,0.91808991,3163.4,3162.6,0.1868545]
[1768198661476,0.96100238,3164.0,3162.6,0.1868545]
[1768198661671,0.91810004,3163.9,3162.6,0.1868545]
[1768198661872,0.96100238,3164.0,3162.6,0.1868545]
[1768198661873,0.91810004,3163.8,3162.6,0.1868545]
[1768198662180,0.91810004,3163.7,3162.6,0.1868545]
[1768198662375,0.91810004,3163.6,3162.6,0.1868545]
[1768198662583,0.91810004,3163.5,3162.6,0.1868545]
[1768198662782,1.241,3164.1,3162.6,0.1868545]
[1768198662783,0.91810004,3163.4,3162.6,0.1868545]
[1768198662981,1.241,3164.1,3162.6,0.1868545]
[1768198663184,0.91823963,3164.0,3162.6,0.1868545]
[1768198663373,0.91823963,3163.9,3162.6,0.1868545]
[1768198663570,0.91823963,3163.8,3162.6,0.1868545]
[1768198663880,0.91823963,3163.7,3162.6,0.1868545]
[1768198664178,0.91823963,3163.6,3162.6,0.1868545]
[1768198664380,0.91823963,3163.5,3162.6,0.1868545]
[1768198664580,1.46100238,3164.0,3162.6,0.1868545]
[1768198664581,0.91823963,3163.4,3162.6,0.1868545]
[1768198664771,1.46100238,3164.0,3162.6,0.1868545]
[1768198664972,0.91824297,3163.9,3162.6,0.1868545]
[1768198665167,0.91824297,3163.8,3162.6,0.1868545]
[1768198665379,0.9615574,3163.4,3162.6,0.1868545]
[1768198668182,0.9615574,3163.2,3162.6,0.1868545]
[1768198668384,0.96514338,3163.2,3162.6,0.1868545]
[1768198669082,0.96514338,3163.2,3161.9,0.15835]
[1768198669479,0.96514338,3163.2,3161.9,6.15835]
[1768198669875,0.9615574,3163.0,3161.9,0.15835]
[1768198670072,0.9615574,3163.0,3161.9,0.16155433]
[1768198671086,0.9615574,3163.0,3162.0,0.17196646]
[1768198677292,0.00358598,3163.2,3162.1,0.17196646]
[1768198680495,0.96514338,3163.2,3162.1,0.17196646]
[1768198683091,0.00358598,3163.2,3162.1,0.17196646]
[1768198683291,0.00358598,3163.2,3162.3,0.17196646]
[1768198683604,0.00358598,3163.2,3162.5,0.17196646]
[1768198702618,0.96514338,3163.2,3162.5,0.17196646]
[1768198702915,0.96514338,3163.2,3162.1,0.15965489]
[1768198703118,0.9615574,3162.2,3161.4,0.15837]
[1768198703320,0.9615574,3162.5,3161.4,0.15837]
[1768198703713,0.00358598,3163.2,3161.4,0.15837]
[1768198703917,0.9615574,3162.6,3161.4,0.15837]
[1768198704118,0.9615574,3162.6,3161.4,0.16226076]
[1768198704318,0.91646147,3162.5,3161.4,0.16226076]
[1768198704520,0.9615574,3162.6,3161.4,0.16226076]
[1768198704720,0.92029464,3162.5,3161.4,0.16226076]
[1768198704917,0.9615574,3162.6,3161.4,0.00389076]
[1768198705119,0.9615574,3162.3,3160.9,0.9615574]
[1768198705318,0.9615574,3162.5,3161.2,0.15965489]
[1768198705524,0.91955947,3162.4,3161.2,0.15965489]
[1768198705725,0.9615574,3162.5,3161.2,0.15965489]
[1768198706019,0.9615574,3162.1,3161.2,0.16239526]
[1768198706411,0.9615574,3162.6,3161.2,0.16239526]
[1768198706609,0.9615574,3162.0,3161.2,0.16239526]
[1768198707021,0.9615574,3161.3,3160.3,0.15965489]
[1768198707216,0.9615574,3161.3,3160.3,0.13628356]
[1768198707415,0.9615574,3161.5,3160.3,0.13628356]
[1768198708216,0.9615574,3161.6,3160.3,0.13968092]
[1768198708626,0.9615574,3162.0,3160.6,0.9615574]
[1768198708825,0.91855951,3161.9,3160.6,0.9615574]
[1768198709124,0.9615574,3162.0,3160.7,0.15965489]
[1768198709330,0.9615574,3161.8,3160.7,0.15965489]
[1768198709924,0.15832,3162.5,3160.7,0.15965489]
[1768198710130,0.9615574,3161.8,3160.7,0.15965489]
[1768198710332,0.15832,3162.5,3160.3,0.16305225]
[1768198710530,0.91740279,3162.4,3160.5,0.15965489]
[1768198710730,0.9615574,3161.8,3160.5,0.15965489]
[1768198712123,0.9615574,3162.1,3160.9,0.15965489]
[1768198717133,0.9615574,3162.3,3161.1,0.15683508]
[1768198717326,0.9615574,3162.1,3161.1,0.15683508]
[1768198720729,0.23668523,3163.1,3161.1,0.9615574]
[1768198720929,0.9615574,3162.4,3161.2,0.15683508]
[1768198724236,0.92566806,3162.3,3161.2,0.15683508]
[1768198724437,0.9615574,3162.4,3161.2,0.15683508]
[1768198724629,0.92566768,3162.3,3161.2,0.15683508]
[1768198724830,0.9615574,3162.4,3161.2,0.15683508]
[1768198725035,0.92566861,3162.3,3161.2,0.15683508]
[1768198725331,0.9615574,3162.4,3161.2,0.15683508]
[1768198725534,0.92590923,3162.3,3161.2,0.15683508]
[1768198725736,0.9615574,3162.4,3161.2,0.15683508]
[1768198726039,0.92590848,3162.3,3161.2,0.15683508]
[1768198726241,0.9615574,3162.4,3161.2,0.15683508]
[1768198726430,0.92619344,3162.3,3161.2,0.15683508]
[1768198726626,0.9615574,3162.4,3161.2,0.15683508]
[1768198726836,0.92619333,3162.3,3161.2,0.15683508]
[1768198727038,0.9615574,3162.4,3161.2,0.15683508]
[1768198727346,0.92656362,3162.3,3161.2,0.15683508]
[1768198727540,0.96218064,3162.8,3161.2,0.15683508]
[1768198727541,0.92656362,3162.2,3161.2,0.15683508]
[1768198727731,0.96218064,3162.8,3161.2,0.15683508]
[1768198727931,0.92656349,3162.7,3161.2,0.15683508]
[1768198728130,0.92656349,3162.6,3161.2,0.15683508]
[1768198728337,0.92656349,3162.5,3161.2,0.15683508]
[1768198728538,0.92656349,3162.4,3161.2,0.15683508]
[1768198728741,0.92656349,3162.3,3161.2,0.15683508]
[1768198729037,0.92656349,3162.2,3161.2,0.15683508]
[1768198729226,0.92656349,3162.1,3161.2,0.15683508]
[1768198729430,0.96218064,3162.8,3161.2,0.15683508]
[1768198729625,0.92742389,3162.7,3161.2,0.15683508]
[1768198729839,0.92742389,3162.6,3161.2,0.15683508]
[1768198730040,0.92742389,3162.5,3161.2,0.15683508]
[1768198730238,0.92742389,3162.4,3161.2,0.15683508]
[1768198730441,0.92742389,3162.3,3161.2,0.15683508]
[1768198730641,0.92742389,3162.2,3161.2,0.15683508]
[1768198730836,0.92742389,3162.1,3161.2,0.15683508]
[1768198731039,0.96218064,3162.8,3161.2,0.15683508]
[1768198731343,0.92868419,3162.7,3161.2,0.15683508]
[1768198731538,0.92868419,3162.6,3161.2,0.15683508]
[1768198731842,0.92868419,3162.5,3161.2,0.15683508]
[1768198732140,0.92868419,3162.4,3161.2,0.15683508]
[1768198732330,0.92868419,3162.3,3161.2,0.15683508]
[1768198732534,0.92868419,3162.2,3161.2,0.15683508]
[1768198732733,0.92868419,3162.1,3161.2,0.15683508]
[1768198732936,0.92868419,3162.0,3161.2,0.15683508]
[1768198733137,0.92868419,3161.9,3161.2,0.15683508]
[1768198733342,0.96218064,3162.8,3161.2,0.15683508]
[1768198733644,0.9301751,3162.7,3161.2,0.15683508]
[1768198733829,0.9301751,3162.6,3161.2,0.15683508]
[1768198734146,0.9301751,3162.5,3161.2,0.15683508]
[1768198734343,0.9301751,3162.4,3161.2,0.15683508]
[1768198734644,0.9301751,3162.3,3161.2,0.15683508]
[1768198734858,0.9301751,3162.2,3161.2,0.15683508]
[1768198735034,0.9301751,3162.1,3161.2,0.15683508]
[1768198735236,0.9301751,3162.0,3161.2,0.15683508]
[1768198735438,0.9301751,3161.9,3161.2,0.15683508]
[1768198735642,0.9301751,3161.8,3161.2,0.15683508]
[1768198735947,0.96218064,3162.8,3161.2,0.15683508]
[1768198736236,0.93074515,3162.7,3161.2,0.15683508]
[1768198736434,0.93074515,3162.6,3161.2,0.15683508]
[1768198736636,0.93074515,3162.5,3161.2,0.15683508]
[1768198736836,0.93074515,3162.4,3161.2,0.15683508]
[1768198737144,0.93074515,3162.3,3161.2,0.15683508]
[1768198737340,0.93074515,3162.2,3161.2,0.15683508]
[1768198737643,0.93074515,3162.1,3161.2,0.15683508]
[1768198737844,0.93074515,3162.0,3161.2,0.15683508]
[1768198738043,0.93074515,3161.9,3161.2,0.15683508]
[1768198738343,0.93074515,3161.8,3161.2,0.15683508]
[1768198738546,0.96218064,3162.8,3161.2,0.15683508]
[1768198738738,0.93144385,3162.7,3161.2,0.15683508]
[1768198738939,1.00820395,3162.6,3160.7,0.15683508]
[1768198739241,0.93144385,3162.5,3160.7,0.15683508]
[1768198739441,0.93144385,3162.4,3160.7,0.15683508]
[1768198739645,0.93144385,3162.3,3160.7,0.15683508]
[1768198739845,0.93144385,3162.2,3160.7,0.15683508]
[1768198740038,0.93144385,3162.1,3160.7,0.15683508]
[1768198740238,0.93144385,3162.0,3160.7,0.15683508]
[1768198740541,0.93144385,3161.9,3160.7,0.15683508]
[1768198740739,0.93144385,3161.8,3160.7,0.15683508]
[1768198740941,0.0767601,3162.6,3160.7,0.15683508]
[1768198741149,0.93021745,3162.5,3160.7,0.15683508]
[1768198741342,0.93021745,3162.4,3160.7,0.15683508]
[1768198741541,0.93021745,3162.3,3160.7,0.15683508]
[1768198741847,0.93021745,3162.2,3160.7,0.15683508]
[1768198742146,0.93021745,3162.1,3160.7,0.15683508]
[1768198742343,0.93021745,3162.0,3160.7,0.15683508]
[1768198742545,0.93021745,3161.9,3160.7,0.15683508]
[1768198742745,0.93021745,3161.8,3160.7,0.15683508]
[1768198742949,0.0767601,3162.6,3160.7,0.15683508]
[1768198743143,0.93064155,3162.5,3160.7,0.15683508]
[1768198743347,0.93064155,3162.4,3160.7,0.15683508]
[1768198743543,0.93064155,3162.3,3160.7,0.15683508]
[1768198743743,0.93064155,3162.2,3160.7,0.15683508]
[1768198744048,0.93064155,3162.1,3160.7,0.15683508]
[1768198744247,0.93064155,3162.0,3160.7,0.15683508]
[1768198744542,0.93064155,3161.9,3160.7,0.15683508]
[1768198744756,0.93064155,3161.8,3160.7,0.15683508]
[1768198744943,0.0767601,3162.6,3160.7,0.15683508]
[1768198745144,0.93034564,3162.5,3160.7,0.15683508]
[1768198745454,0.93034564,3162.4,3160.7,0.15683508]
[1768198745749,0.0767601,3162.6,3160.7,0.15683508]
[1768198745750,0.93034564,3162.3,3160.7,0.15683508]
[1768198745952,0.93034564,3162.2,3160.7,0.15683508]
[1768198746152,0.93034564,3162.1,3160.7,0.15683508]
[1768198746339,0.93034564,3162.0,3160.7,0.15683508]
[1768198746541,0.93034564,3161.9,3160.7,0.15683508]
[1768198746836,0.93034564,3161.8,3160.7,0.15683508]
[1768198747040,0.0767601,3162.6,3160.7,0.15683508]
[1768198747246,0.93057131,3162.5,3160.7,0.15683508]
[1768198747447,0.93057131,3162.4,3160.7,0.15683508]
[1768198747642,0.93057131,3162.3,3160.7,0.15683508]
[1768198747844,0.93057131,3162.2,3160.7,0.15683508]
[1768198748045,0.93057131,3162.1,3160.7,0.15683508]
[1768198748344,0.93057131,3162.0,3160.7,0.15683508]
[1768198748546,0.93057131,3161.9,3160.7,0.15683508]
[1768198748743,0.93057131,3161.8,3160.7,0.15683508]
[1768198748946,0.93057131,3161.7,3160.7,0.15683508]
[1768198749146,0.0767601,3162.6,3160.7,0.15683508]
[1768198749346,0.93066467,3162.5,3160.7,0.15683508]
[1768198749546,0.93066467,3162.4,3160.7,0.15683508]
[1768198749742,0.93066467,3162.3,3160.7,0.15683508]
[1768198749948,0.93066467,3162.2,3161.3,0.15704203]
[1768198750148,0.5,3163.0,3161.3,0.15704203]
[1768198750350,0.93088944,3162.9,3161.3,0.15704203]
[1768198750547,0.93088944,3162.8,3161.3,0.15704203]
[1768198750754,0.93088944,3162.7,3161.3,0.15704203]
[1768198751050,0.93088944,3162.6,3161.3,0.15704203]
[1768198751255,0.93088944,3162.5,3161.4,0.15020519]
[1768198751447,0.93088944,3162.4,3161.4,0.15020519]
[1768198751644,0.5,3163.0,3161.4,0.15020519]
[1768198751948,0.93137604,3162.9,3161.4,0.15020519]
[1768198752249,0.93137604,3162.8,3161.4,0.15020519]
[1768198752447,0.93137604,3162.7,3161.4,0.15020519]
[1768198752643,0.93137604,3162.6,3161.4,0.15020519]
[1768198752851,0.93137604,3162.5,3161.4,0.15020519]
[1768198753055,0.93137604,3162.4,3161.4,0.15020519]
[1768198753354,0.5,3163.0,3161.4,0.15020519]
[1768198753656,0.93089603,3162.9,3161.4,0.15020519]
[1768198753953,0.93089603,3162.8,3161.4,0.15020519]
[1768198754155,0.93089603,3162.7,3161.4,0.15020519]
[1768198754357,0.93089603,3162.6,3161.4,0.15020519]
[1768198754554,0.93089603,3162.5,3161.4,0.15020519]
[1768198754755,0.93089603,3162.4,3161.4,0.15020519]
[1768198754954,0.5,3163.0,3161.4,0.15020519]
[1768198755156,0.9306689,3162.9,3161.4,0.15020519]
[1768198755357,0.9306689,3162.8,3161.4,0.15020519]
[1768198755559,0.9306689,3162.7,3161.4,0.15020519]
[1768198755761,0.9306689,3162.6,3161.4,0.15020519]
[1768198756058,0.9306689,3162.5,3161.4,0.15020519]
[1768198756259,0.5,3163.0,3161.4,0.15020519]
[1768198756448,0.93043238,3162.9,3161.4,0.15020519]
[1768198756645,0.93043238,3162.8,3161.4,0.15020519]
[1768198756849,0.93043238,3162.7,3161.4,0.15020519]
[1768198757052,0.93043238,3162.6,3161.4,0.15020519]
[1768198757252,0.93043238,3162.5,3161.4,0.15020519]
[1768198757560,0.5,3163.0,3161.4,0.15020519]
[1768198757763,0.93033126,3162.9,3161.4,0.15020519]
[1768198757957,0.93033126,3162.8,3161.4,0.15020519]
[1768198758159,0.93033126,3162.7,3161.4,0.15020519]
[1768198758360,0.93033126,3162.6,3161.4,0.15020519]
[1768198758662,0.93033126,3162.5,3161.4,0.15020519]
[1768198758865,0.5,3163.0,3161.4,0.15020519]
[1768198759053,0.93025008,3162.9,3161.4,0.15020519]
[1768198759253,0.93025008,3162.8,3161.4,0.15020519]
[1768198759454,0.93025008,3162.7,3161.4,0.15020519]
[1768198759654,0.93025008,3162.6,3161.4,0.15020519]
[1768198759858,0.93025008,3162.5,3161.4,0.15020519]
[1768198760064,0.5,3163.0,3161.4,0.15020519]
[1768198760364,0.93016243,3162.9,3161.4,0.15020519]
[1768198760563,0.93016243,3162.8,3161.4,0.15020519]
[1768198760760,0.93016243,3162.7,3161.4,0.15020519]
[1768198760961,0.93016243,3162.6,3161.4,0.15020519]
[1768198761163,0.93016243,3162.5,3161.4,0.15020519]
[1768198761364,0.5,3163.0,3161.4,0.15020519]
[1768198761559,0.92969885,3162.9,3161.4,0.15020519]
[1768198761760,0.92969885,3162.8,3161.4,0.15020519]
[1768198761954,0.92969885,3162.7,3161.4,0.15020519]
[1768198762157,0.92969885,3162.6,3161.4,0.15020519]
[1768198762359,0.92969885,3162.5,3161.4,0.15020519]
[1768198762560,0.5,3163.0,3161.4,0.15020519]
[1768198762759,0.9292885,3162.9,3161.4,0.15020519]
[1768198762963,0.9292885,3162.8,3161.4,0.15020519]
[1768198763165,0.9292885,3162.7,3161.4,0.15020519]
[1768198763365,0.9292885,3162.6,3161.4,0.15020519]
[1768198763566,0.9292885,3162.5,3161.4,0.15020519]
[1768198763767,0.5,3163.0,3161.4,0.15020519]
[1768198763967,0.92926378,3162.9,3161.4,0.15020519]
[1768198764165,0.92926378,3162.8,3161.4,0.15020519]
[1768198764467,0.92926378,3162.7,3161.4,0.15020519]
[1768198764666,0.92926378,3162.6,3161.4,0.15020519]
[1768198764878,0.92926378,3162.5,3161.4,0.15020519]
[1768198765078,0.5,3163.0,3161.4,0.15020519]
[1768198765280,0.92933403,3162.9,3161.4,0.15020519]
[1768198765481,0.92933403,3162.8,3161.4,0.15020519]
[1768198765680,0.92933403,3162.7,3161.4,0.15020519]
[1768198765981,0.92933403,3162.6,3161.4,0.15020519]
[1768198766179,0.92933403,3162.5,3161.4,0.15020519]
[1768198766375,0.5,3163.0,3161.4,0.15020519]
[1768198766576,0.92933971,3162.9,3161.4,0.15020519]
[1768198766872,0.92933971,3162.8,3161.4,0.15020519]
[1768198767074,0.92933971,3162.7,3161.4,0.15020519]
[1768198767273,0.92933971,3162.6,3161.4,0.15020519]
[1768198767483,0.92933971,3162.5,3161.4,0.15020519]
[1768198767677,0.5,3163.0,3161.4,0.15020519]
[1768198767879,0.92936738,3162.9,3161.4,0.15020519]
[1768198768080,0.92936738,3162.8,3161.4,0.15020519]
[1768198768384,0.92936738,3162.7,3161.4,0.15020519]
[1768198768586,0.92936738,3162.6,3161.4,0.15020519]
[1768198768884,0.92936738,3162.5,3161.4,0.15020519]
[1768198769086,0.5,3163.0,3161.4,0.15020519]
[1768198769283,0.92944434,3162.9,3161.4,0.15020519]
[1768198769583,0.92944434,3162.8,3161.4,0.15020519]
[1768198769785,0.92944434,3162.7,3161.4,0.15020519]
[1768198769982,0.92944434,3162.6,3161.4,0.15020519]
[1768198770183,0.5,3163.0,3161.4,0.15020519]
[1768198770184,0.92944434,3162.5,3161.4,0.15020519]
[1768198770384,0.5,3163.0,3161.4,0.15020519]
[1768198770585,0.92947606,3162.9,3161.4,0.15020519]
[1768198770785,0.92947606,3162.8,3161.4,0.15020519]
[1768198770980,0.92947606,3162.7,3161.4,0.15020519]
[1768198771180,0.92947606,3162.6,3161.4,0.15020519]
[1768198771382,0.92947606,3162.5,3161.4,0.15020519]
[1768198771582,0.5,3163.0,3161.4,0.15020519]
[1768198771782,0.92331559,3162.9,3161.4,0.15020519]
[1768198772086,0.92331559,3162.8,3161.4,0.15020519]
[1768198772289,0.92331559,3162.7,3161.4,0.15020519]
[1768198772480,0.5,3163.0,3161.4,0.15020519]
[1768198772481,0.92331559,3162.6,3161.4,0.15020519]
[1768198772680,0.92331559,3162.5,3161.4,0.15020519]
[1768198772881,0.5,3163.0,3161.4,0.15020519]
[1768198773081,0.92340731,3162.9,3161.4,0.15020519]
[1768198773383,0.92340731,3162.8,3161.4,0.15020519]
[1768198773580,0.92340731,3162.7,3161.4,0.15020519]
[1768198773778,0.92340731,3162.6,3161.4,0.15020519]
[1768198773981,0.92340731,3162.5,3161.4,0.15020519]
[1768198774184,0.5,3163.0,3161.4,0.15020519]
[1768198774399,0.92364541,3162.9,3161.4,0.15020519]
[1768198774687,0.92364541,3162.8,3161.4,0.15020519]
[1768198774898,0.92364541,3162.7,3161.4,0.15020519]
[1768198775086,0.92364541,3162.6,3161.4,0.15020519]
[1768198775289,0.92364541,3162.5,3161.4,0.15020519]
[1768198775492,0.5,3163.0,3161.4,0.15020519]
[1768198775691,0.92360461,3162.9,3161.4,0.15020519]
[1768198775893,0.92360461,3162.8,3161.4,0.15020519]
[1768198776194,0.92360461,3162.7,3161.4,0.15020519]
[1768198776393,0.92360461,3162.6,3161.4,0.15020519]
[1768198776597,0.92360461,3162.5,3161.4,0.15020519]
[1768198776803,0.92379094,3162.4,3161.4,0.15020519]
[1768198777093,0.56653634,3163.0,3161.4,0.15020519]
[1768198777294,0.92379171,3162.9,3161.4,0.15020519]
[1768198777488,0.92379171,3162.8,3161.4,0.15020519]
[1768198777697,0.92379171,3162.7,3161.4,0.15020519]
[1768198777897,0.92379171,3162.6,3161.4,0.15020519]
[1768198778089,0.92379171,3162.5,3161.4,0.15020519]
[1768198778293,0.92379171,3162.4,3161.4,0.15020519]
[1768198778493,0.56653634,3163.0,3161.4,0.15020519]
[1768198778793,0.92436913,3162.9,3161.4,0.15020519]
[1768198778995,0.92436913,3162.8,3161.4,0.15020519]
[1768198779193,0.92436913,3162.7,3161.4,0.15020519]
[1768198779498,0.92436913,3162.6,3161.4,0.15020519]
[1768198779694,0.92436913,3162.5,3161.4,0.15020519]
[1768198779995,0.92436913,3162.4,3161.4,0.15020519]
[1768198780196,0.92436913,3162.3,3161.4,0.15020519]
[1768198780396,0.56653634,3163.0,3161.4,0.15020519]
[1768198780597,0.92481288,3162.9,3161.4,0.15020519]
[1768198780797,0.92481288,3162.8,3161.4,0.15020519]
[1768198780996,0.92481288,3162.7,3161.4,0.15020519]
[1768198781198,0.92481288,3162.6,3161.4,0.15020519]
[1768198781398,0.92481288,3162.5,3161.4,0.15020519]
[1768198781599,0.92481288,3162.4,3161.4,0.15020519]
[1768198781798,0.92481288,3162.3,3161.4,0.15020519]
[1768198782003,0.56653634,3163.0,3161.4,0.15020519]
[1768198782191,0.92493124,3162.9,3161.4,0.15020519]
[1768198782490,0.92493124,3162.8,3161.4,0.15020519]
[1768198782692,0.56653634,3163.0,3161.4,0.15020519]
[1768198782693,0.92493124,3162.7,3161.4,0.15020519]
[1768198782892,0.92493124,3162.6,3161.4,0.15020519]
[1768198783094,0.92493124,3162.5,3161.4,0.15020519]
[1768198783292,0.92493124,3162.4,3161.4,0.15020519]
[1768198783589,0.92493124,3162.3,3161.4,0.15020519]
[1768198783796,0.56653634,3163.0,3161.4,0.15020519]
[1768198783994,0.92494117,3162.9,3161.4,0.15020519]
[1768198784196,0.92494117,3162.8,3161.4,0.15020519]
[1768198784506,0.92494117,3162.7,3161.4,0.15020519]
[1768198784706,0.92494117,3162.6,3161.4,0.15020519]
[1768198785002,0.92494117,3162.5,3161.4,0.15020519]
[1768198785203,0.92494117,3162.4,3161.4,0.15020519]
[1768198785404,0.92494117,3162.3,3161.4,0.15020519]
[1768198785606,0.56653634,3163.0,3161.4,0.15020519]
[1768198785805,0.92509492,3162.9,3161.4,0.15020519]
[1768198785999,0.92509492,3162.8,3161.4,0.15020519]
[1768198786198,0.92509492,3162.7,3161.4,0.15020519]
[1768198786501,0.92509492,3162.6,3161.4,0.15020519]
[1768198786706,0.92509492,3162.5,3161.4,0.15020519]
[1768198787007,0.92509492,3162.4,3161.4,0.15020519]
[1768198787304,0.92509492,3162.3,3161.4,0.15020519]
[1768198787506,0.56653634,3163.0,3161.4,0.15020519]
[1768198787707,0.92511695,3162.9,3161.4,0.15020519]
[1768198787906,0.92511695,3162.8,3161.4,0.15020519]
[1768198788097,0.92511695,3162.7,3161.4,0.15020519]
[1768198788297,0.92511695,3162.6,3161.4,0.15020519]
[1768198788509,0.92511695,3162.5,3161.4,0.15020519]
[1768198788809,0.92511695,3162.4,3161.4,0.15020519]
[1768198789108,0.92511695,3162.3,3161.4,0.15020519]
[1768198789309,0.96200057,3162.6,3161.4,0.15020519]
[1768198789607,0.92514187,3162.5,3161.4,0.15020519]
[1768198789799,0.92514187,3162.4,3161.4,0.15020519]
[1768198789998,0.92514187,3162.3,3161.4,0.15020519]
[1768198790200,0.96200057,3162.6,3161.4,0.15020519]
[1768198790410,0.92503178,3162.5,3161.4,0.15020519]
[1768198790610,0.92503178,3162.4,3161.4,0.15020519]
[1768198790812,0.92503178,3162.3,3161.4,0.15020519]